Cogmind - Beta 13 @@@ ROGUE MODE // 2024.05.21 @ 11:59:26 Player: H3-RMN Result: Destroyed by D-53 Grenadier with Mini Grenade Launcher Performance ------------- Evolutions (0) 0 Regions Visited (2) 400 Robots Destroyed (29) 145 Value Destroyed (710) 710 Prototype IDs (3) 60 Alien Tech Used (0) 0 Bonus (25) 25 TOTAL SCORE: 1340 Bonus ------- Follower Combat Kills 60 Friendly Fire -35 Cogmind --------- Core Integrity 0/250 Matter 241/300 Energy 94/100 System Corruption 0% Temperature Cool (0) Movement Treading (160) Location -10/Mines Parts ------- > --- POWER (1) -------- (None) > --- PROPULSION (2) --- Light Treads > --- UTILITY (2) ------ Medium Storage Unit Core Shielding > --- WEAPON (2) ------- Heavy Assault Rifle Heavy Assault Rifle > --- INVENTORY (10) --- Light Treads Wheel Structural Scanner Transport Network Coupler Light Armor Plating Light Armor Plating Improved Light Cannon Hammer Peak State ------------ > --- POWER ------------ Ion Engine > --- PROPULSION ------- Light Treads Light Treads > --- UTILITY ---------- Medium Storage Unit Core Shielding > --- WEAPON ----------- Improved Light Cannon Rocket Launcher > --- INVENTORY -------- Light Treads Wheel Structural Scanner Transport Network Coupler Light Armor Plating Light Armor Plating Heavy Assault Rifle Heavy Assault Rifle Improved Light Cannon Hammer [Rating: 10] Favorites ----------- Power Ion Engine Engine Ion Engine Propulsion Light Treads Treads Light Treads Wheel Wheel Utility Medium Storage Unit Device Seismic Detector Storage Medium Storage Unit Protection Core Shielding Weapon Improved Light Cannon Energy Gun Medium Laser Ballistic Gun Heavy Assault Rifle Ballistic Cannon Improved Light Cannon Launcher Grenade Launcher Build | -11 -10 -10 ------- Run | Yrd Mat Min Slots Evolved . | . . . Power . | . . . Propulsion . | . . . Utility . | . . . Weapon . | . . . Parts Attached 25 | 7 6 12 Power 2 | 1 1 . Engine 2 | 1 1 . Core . | . . . Reactor . | . . . Propulsion 5 | 2 1 2 Treads 3 | 1 . 2 Leg . | . . . Wheel 2 | 1 1 . Hover . | . . . Flight . | . . . Utility 6 | 2 1 3 Device 2 | 1 . 1 Storage 2 | 1 1 . Processor . | . . . Hackware . | . . . Protection 2 | . . 2 Artifact . | . . . Weapon 12 | 2 3 7 Energy Gun 3 | 2 1 . Energy Cannon . | . . . Ballistic Gun 2 | . . 2 Ballistic Cannon 3 | . 2 1 Launcher 4 | . . 4 Special Weapon . | . . . Impact Weapon . | . . . Slashing Weapon . | . . . Piercing Weapon . | . . . Special Melee Weapon . | . . . Unidentified Prototypes . | . . . Parts Lost 9 | . 3 6 Power 1 | . . 1 Propulsion 4 | . 1 3 Utility 1 | . 1 . Weapon 3 | . 1 2 Highest Loss Streak 4 | . 1 4 To Critical Strikes . | . . . Average Slot Usage (%) 95 | . 92 96 Engine 13 | . 14 13 Treads 19 | . 14 22 Wheel 6 | . 10 3 Device 7 | . 10 5 Storage 14 | . 14 14 Protection 4 | . . 7 Energy Gun 5 | . 13 . Ballistic Cannon 14 | . 14 14 Launcher 7 | . . 12 Naked Turns . | . . . Heaviest Build 25 | 14 24 25 Greatest Support 40 | 10 20 40 Greatest Overweight (x) 2 | 1 2 2 Average Overweight (x) . | . 1 . Largest Inventory Capacity 10 | 8 10 10 Average Capacity 9 | 7 9 10 Most Carried 10 | 6 10 10 Average Carried 8 | 2 7 9 Final Capacity 10 | 8 10 10 Final Carried 10 | 6 10 8 Class Distribution -------------------- 100% | Mutant Dominant Class ---------------- Mutant | -10/Materials Mutant | -10/Mines Resources | -11 -10 -10 ----------- Run | Yrd Mat Min Matter Collected 710 | 188 287 235 Remotely . | . . . Salvage Created 945 | 90 485 370 Parts 42 | 5 16 21 Haulers Intercepted 1 | . 1 . Recyclers Shooed 1 | . . 1 Parts Field Recycled . | . . . Retrieved Matter . | . . . Parts Self-Destructed . | . . . Prevented . | . . . Kills | -11 -10 -10 ------- Run | Yrd Mat Min Combat Hostiles Destroyed 25 | . 12 13 Guns 8 | . 8 . Cannons 6 | . 4 2 AOE 11 | . . 11 Classes Destroyed 7 | 2 4 1 Worker 1 | . 1 . Tunneler 2 | 1 . 1 Hauler 1 | . 1 . Recycler 4 | 1 1 2 Swarmer 5 | . 2 3 Grunt 16 | . 10 6 Assembled 4 | . . 4 Best Kill Streak 4 | 2 4 4 Combat Bots Only 4 | . 4 4 Max Kills in Single Turn 4 | 1 1 4 Gunslinging . | . . . Exploded 3 | . . 3 Melee . | . . . Uniques/NPCs Destroyed . | . . . Combat | -11 -10 -10 -------- Run | Yrd Mat Min Hostile Shots Fired 107 | . 69 38 Missed 22 | . 15 7 Damage Taken 1463 | . 635 828 Core 260 | . 137 123 Absorbed by Shields . | . . . Redirected to Shielding 17 | . . 17 Core Remaining (%) 100 | 100 . . Volleys Fired 82 | 4 56 22 Largest 2 | 2 2 2 Hottest 90 | 90 90 46 Shots Fired 144 | 8 111 25 Gun 71 | 8 57 6 Cannon 65 | . 54 11 Launcher 8 | . . 8 Special . | . . . Kinetic 71 | . 54 17 Thermal 65 | 8 57 . Explosive 8 | . . 8 Electromagnetic . | . . . Robot Hit Streak 15 | 8 15 6 Robot Miss Streak 6 | . 6 2 Penetration Max . | . . . Secondary Targets 1 | . 1 . Max Gunslinging Chain 1 | . 1 . Shots Hit Robots 94 | 8 74 12 Core Hits 54 | 3 25 26 Critical Kills . | . . . Critical Parts Destroyed . | . . . Critical Strikes 6 | 1 4 1 Burn 4 | 1 3 . Blast 2 | . 1 1 Melee Attacks . | . . . Impact . | . . . Slashing . | . . . Piercing . | . . . Sneak Attacks . | . . . Combat Hostiles . | . . . Follow-up Attacks . | . . . Damage Inflicted 2201 | 92 1194 915 Guns 687 | 92 532 63 Cannons 777 | . 662 115 Explosions 737 | . . 737 Melee . | . . . Ramming . | . . . Kinetic 840 | . 662 178 Thermal 624 | 92 532 . Explosive 737 | . . 737 Electromagnetic . | . . . Impact . | . . . Slashing . | . . . Piercing . | . . . Highest Corruption . | . . . Average Corruption . | . . . Corruption Purged . | . . . Corruption Blocked . | . . . Overload Shots . | . . . Overflow Damage 28 | . 19 9 Projectiles 19 | . 19 . Explosions 9 | . . 9 Melee . | . . . Knockbacks 15 | . 13 2 Impact . | . . . Kinetic 15 | . 13 2 Secondary . | . . . Self-Inflicted Damage 77 | . . 77 Shots 3 | . . 3 Rammed . | . . . Targets Rammed . | . . . Kicked . | . . . Crushed . | . . . Highest Temperature 261 | 55 261 . Average Temperature 71 | 20 74 . Received Heat Transfer 363 | . 333 30 Effects 1 | . 1 . Energy Bleed 1 | . 1 . Siege Activations . | . . . Robots Corrupted . | . . . Combat Hostiles . | . . . Parts Fried . | . . . Impact Corruptions . | . . . Robots Melted . | . . . Combat Hostiles . | . . . Parts Melted 4 | 1 3 . Heat Transferred 1858 | 322 1536 . Parts Sabotaged . | . . . Parts Stolen . | . . . Parts Stripped . | . . . Power Chain Reactions . | . . . Alert | -11 -10 -10 ------- Run | Yrd Mat Min Peak Influence 393 | 10 335 393 Initial 91 | . 6 91 Average 212 | 3 185 246 Maximum Alert Level 1 | . 1 1 Low Security (%) 38 | 100 45 29 Level 1 61 | . 54 70 Level 2 . | . . . Level 3 . | . . . Level 4 . | . . . Level 5 . | . . . High Security . | . . . Max Security . | . . . Squads Dispatched 6 | . 5 1 Investigation 5 | . 4 1 Extermination . | . . . Reinforcement 1 | . 1 . Assault . | . . . Garrison . | . . . Intercept . | . . . Searches Triggered . | . . . Construction Impeded . | . . . Haulers Reinforced . | . . . Active Scanning Responses . | . . . Cargo Convoy Interrupts . | . . . Stealth | -11 -10 -10 --------- Run | Yrd Mat Min Distress Signals 4 | . 4 . Communications Jammed . | . . . Distress Signals . | . . . Times Spotted 42 | . 20 22 Peak Tracking Total 8 | . 6 8 Tactical Retreats 1 | . . 1 Traps | -11 -10 -10 ------- Run | Yrd Mat Min Traps Triggered . | . . . Indirectly . | . . . Trap Hack Attempts . | . . . Triggered . | . . . Disarmed . | . . . Reprogrammed . | . . . Reused . | . . . Traps Extracted . | . . . Installed . | . . . Triggered . | . . . Machines | -11 -10 -10 ---------- Run | Yrd Mat Min Machines Disabled 1 | . . 1 Max in Single Turn 1 | . . 1 Machines Repaired . | . . . Machines Dismantled . | . . . Machines Sabotaged . | . . . Overloaded Fab Kills . | . . . Hacking | -11 -10 -10 --------- Run | Yrd Mat Min Machines Accessed 7 | . 6 1 Terminals 5 | . 4 1 Fabricators . | . . . Repair Stations . | . . . Recycling Units 2 | . 2 . Scanalyzers . | . . . Garrison Access . | . . . Total Hacks 25 | . 20 5 Successful 10 | . 9 1 Failed 15 | . 11 4 Catastrophic 2 | . 1 1 Database Lockouts . | . . . Manual 20 | . 14 6 Terminals 21 | . 16 5 Fabricators . | . . . Repair Stations . | . . . Recycling Units 4 | . 4 . Scanalyzers . | . . . Garrison Access . | . . . Terminal Hacks 6 | . 5 1 Part Schematic 1 | . 1 . Robot Schematic 1 | . . 1 Robot Analysis 2 | . 2 . Prototype ID Bank 2 | . 2 . Fabricator Hacks . | . . . Repair Station Hacks . | . . . Recycling Unit Hacks 2 | . 2 . Report Inventory 2 | . 2 . Scanalyzer . | . . . Garrison Access Hacks . | . . . Unauthorized Hacks 2 | . 2 . Terminals . | . . . Fabricators . | . . . Repair Stations . | . . . Recycling Units 2 | . 2 . Tunnel 2 | . 2 . Scanalyzers . | . . . Garrison Access . | . . . Data Cores Recovered . | . . . Used . | . . . Hacking Detections 5 | . 4 1 Full Trace Events 4 | . 3 1 Feedback Events . | . . . Feedback Blocked . | . . . Robot Schematics Acquired 1 | . . 1 Robots Built . | . . . Authchips . | . . . Time . | . . . Total Robot Build Rating . | . . . Part Schematics Acquired 1 | . 1 . Parts Built . | . . . Authchips . | . . . Time . | . . . Total Part Build Rating . | . . . Parts Repaired . | . . . Time . | . . . Parts Recycled . | . . . Recycled Matter . | . . . Retrieved Matter . | . . . Retrieved Components . | . . . Parts Scanalyzed . | . . . Part Schematics Acquired . | . . . Parts Damaged . | . . . Bothacking | -11 -10 -10 ------------ Run | Yrd Mat Min Used RIF Installer . | . . . Robots Hacked . | . . . Non-combat . | . . . Combat . | . . . Robot Hacks Applied . | . . . Relay Couplers Released . | . . . Fabnet Peak Effective % . | . . . Robots Rewired . | . . . Allies Hacked . | . . . Hacks Repelled . | . . . Allies | -11 -10 -10 -------- Run | Yrd Mat Min Total Allies 1 | . . 1 Largest Group 1 | . . 1 Highest-Rated Group 31 | . . 31 Highest-Rated Ally 31 | . . 31 Total Orders . | . . . Ally Attacks 7 | . . 7 Total Damage 129 | . . 129 Kills 3 | . . 3 Allies Corrupted . | . . . Allies Melted . | . . . Intel | -11 -10 -10 ------- Run | Yrd Mat Min Robot Analysis Total 2 | . 2 . Derelict Logs Recovered 2 | . . 2 Drone Launches . | . . . Drone Recoveries . | . . . Exploration | -11 -10 -10 ------------- Run | Yrd Mat Min Turns Passed 1449 | 65 535 849 Spaces Moved 802 | 41 273 488 Core 1 | 1 . . Treads 342 | . 29 313 Legs . | . . . Wheels 459 | 40 244 175 Hover . | . . . Flight . | . . . Fastest Speed 50 | 50 95 110 Average Speed 133 | 89 115 146 Slowest Speed 240 | 95 240 240 Overloaded Moves . | . . . Propulsion Burnouts . | . . . Robots Hopped . | . . . Cave-ins Triggered . | . . . Exploration Rate (%) 48 | 3 54 87 Regions Visited 2 Branch Regions 1 Pre-discovered Areas 4 | . 2 2 Known Exits Taken . | . . . Unknown Exits Taken 2 | 1 1 . Scrap Searched 3 | . . 3 Spaces Dug 18 | . . 18 Terrain Destroyed 70 | . 5 65 Melee . | . . . Projectile 5 | . 5 . AOE 65 | . . 65 Terrain Rammed . | . . . Walls Destroyed . | . . . Machines Disabled . | . . . Actions | -11 -10 -10 --------- Run | Yrd Mat Min Total 1039 | 57 382 600 Wait 101 | . 36 65 Move 800 | 40 272 488 Hop . | . . . Pick Up 19 | 6 7 6 Fast Attach 13 | 7 2 4 Attach 5 | . 2 3 Detach . | . . . Swap 7 | . 2 5 Drop 12 | . 5 7 Fire 82 | 4 56 22 Melee . | . . . Ram . | . . . Kick . | . . . Crush . | . . . Escape Stasis . | . . . Rewire . | . . . Trap . | . . . Miscellaneous . | . . . Route ------- -11/Scrapyard -10/Materials (discovered 3 exits: [*Mat] / *Min x2) -10/Mines (discovered 2 exits: [*Mat x2]) History --------- Turn | Location | Event 22 | -11/Scrapyard | Discovered new exit (range 16) 66 | -11/Scrapyard | Entered Materials 228 | -10/Materials | Discovered new exit (range 11) 302 | -10/Materials | Build established: Mutant 351 | -10/Materials | Discovered new exit (range 5) 456 | -10/Materials | Core integrity fell below 50% 588 | -10/Materials | Discovered new exit (range 8) 601 | -10/Materials | Entered Mines 608 | -10/Mines | Escorted by a lone wolf Derelict 628 | -10/Mines | Learned location of Storage (-8) 893 | -10/Mines | Joined a pair of Derelicts in attacking an 0b10 outpost 911 | -10/Mines | Learned Materials stockpile data 1030 | -10/Mines | Discovered new exit (range 8) 1058 | -10/Mines | Discovered new exit (range 8) 1100 | -10/Mines | Received a Rocket Launcher from a helpful Derelict 1399 | -10/Mines | Assembled infested the area 1404 | -10/Mines | Assisted by a Guerilla fighting off Assembled 1431 | -10/Mines | Core integrity fell below 20% 1450 | -10/Mines | Destroyed by D-53 Grenadier with Mini Grenade Launcher Last Messages --------------- group of Assembled to figure out where they're coming from, and they're closing on this area, come on!" 01412_ as-15033 destroyed. 01418_ as-48638 destroyed. 01419_ Rocket Launcher severed. 01420_ as-49097 suffers critical hit (Blast). 01420_ as-49097 destroyed. 01424_ as-29715 knocked back. 01426_ Acquired Rocket Launcher. 01427_ as-36859 destroyed. 01427_ as-05751 destroyed. 01427_ Destroyed Asb. F-torch. 01430_ Rocket Launcher destroyed. 01435_ Imp. Light Cannon destroyed. 01435_ Ion Engine destroyed. 01438_ The unstable cave ceiling collapses. 01438_ as-29715 destroyed. 01444_ The unstable cave ceiling collapses. 01448_ Lgt. Treads destroyed. Map ----- +----------------------------------------------------+ | ??????????# #????# #?????????##### ## # | | ??????????# #????# #?????##### * | | ??????????# #????# #????## =% """ | | ???#####??? ###### """ ##??## = ## """ | | ###### #### ? """ #??# =%[ #### """ | | ####???# """ ##?# #####??# ? | | = #??????# #?## ##??????## | | ########[[###????# #### ##????????# # | | ??######%!! #???## #?????????# # | | ???????#! #??## #????????? ## # | | ???????#### #?## ######????????? ##? | | ??????????# #?# ##????????????? #???## | | ??????????# #?# ## #####????????? #????? | | ??????????# #?# ### # ###??????? ##????? | | ??????????# #?# #?## ##??????##??????? | | ??????????# #?# #?## d #??????????????? | | ??????????# #?# ##?# d ##?????????????? | | ????????### #?#####??# ##????????????? | | ????????# ##???????## # ###??????????? | | ????????# #???????# #??????????? | | ????????### #????????# #???????????? | | ?????????? ###?????#### % ###?????????? | | ??????????#????????# % #???????? | | ???????????????????# #?????????? | | ???????????????????# #??????????? | | ????????????????????# @ ##?????????????? | | ????????????????????# #####??????????????? | | ???????????????????# #??????????????????? | | ???????????????????# ##??????????????????? | | ???????????????????#### # ##???????????????????? | | ??????????????????????###?###????????????????????? | | ?????????????????????????????????????????????????? | | ?????????????????????????????????????????????????? | | | | | | | | | | | | | | | | | | | | | | | | | | | | | | | | | | | +----------------------------------------------------+ Best States ------------- Heat Dissipation 35 Energy Generation 10 Energy Capacity 250 Matter Stores 300 Matter Capacity 300 Sight Range 16 Terrain Scan Density 10 Armor Coverage 150 Core Shielding 20 Evasion (%) 44 Recoil Reduction 2 Item Schematics ----------------- Hcp. Storage Unit | -10/Materials | Hacked Robot Schematics ------------------ M-13 Machinist | -10/Mines | Hacked Fabricated ------------ Nothing Alien Tech Used ----------------- None Achievements -------------- None Challenges ------------ None Game ------ Seed SwarmSpacefoldMediator Manual? 0 Play Time 00:12:51 Cumulative 746.4 hours Start 2024.05.21 @ 11:47:05 End 2024.05.21 @ 11:59:26 Sessions 1 Manual Loads 0 Difficulty Rogue Special Mode None Game No. 305 Rogue 275 Adventurer 3 Explorer 27 Win Type - Total 16 Types 10/3/1/1/0/1/0/0/0 Lore% 92 Gallery% 96 Achievement% 85 Wizard Run 0 Options --------- Layout 2 ASCII 0 Keyboard 0 Movement Numpad Keybinds 0 Fullscreen 2 Font 24/Smallcaps Map View 50x44 Zoom Use 0% Tactical HUD 1 Map Filters NONE Filters NONE Steam 1 RUN: 183052b2-fb4b-4c79-a7ca-a1f9a0cee1de